[Event "Early-Titled-Tuesday-Blitz-April-02-2024"]
[Site "Chess.com"]
[Date "2024.04.02"]
[Round "6"]
[White "Predator0608"]
[Black "Rurep26"]
[Result "0-1"]
[WhiteElo "2559"]
[BlackElo "2725"]
[TimeControl "180+1"]
[EndTime "9:08:19 PDT"]
[Termination "Rurep26 won by resignation"]

1. e4 {[%clk 0:03:00.9]} 1... e6 {[%clk 0:02:59.2]} 2. d4 {[%clk 0:03:00.8]}
2... d5 {[%clk 0:02:56.8]} 3. Nc3 {[%clk 0:03:00.2]} 3... Bb4 {[%clk 0:02:55.8]}
4. e5 {[%clk 0:02:58.1]} 4... c5 {[%clk 0:02:55.7]} 5. a3 {[%clk 0:02:56.8]}
5... Bxc3+ {[%clk 0:02:55.2]} 6. bxc3 {[%clk 0:02:57.7]} 6... Qc7 {[%clk
0:02:55.4]} 7. Qg4 {[%clk 0:02:56.7]} 7... f5 {[%clk 0:02:55]} 8. Qg3 {[%clk
0:02:55]} 8... cxd4 {[%clk 0:02:55.2]} 9. Ne2 {[%clk 0:02:53.5]} 9... Nc6 {[%clk
0:02:54.9]} 10. cxd4 {[%clk 0:02:51.1]} 10... Nge7 {[%clk 0:02:53.3]} 11. Bd2
{[%clk 0:02:36.6]} 11... O-O {[%clk 0:02:50.2]} 12. Qe3 {[%clk 0:02:27.7]} 12...
f4 {[%clk 0:02:19.5]} 13. Qd3 {[%clk 0:02:24.5]} 13... Nf5 {[%clk 0:02:15.8]}
14. g4 {[%clk 0:01:57.7]} 14... Nfxd4 {[%clk 0:02:06.4]} 15. Nxd4 {[%clk
0:01:11.5]} 15... Qxe5+ {[%clk 0:02:05.1]} 16. Be2 {[%clk 0:01:08.9]} 16... Qxd4
{[%clk 0:01:24]} 17. Bc3 {[%clk 0:00:58.2]} 17... Qxd3 {[%clk 0:01:21.7]} 18.
cxd3 {[%clk 0:00:57.3]} 18... f3 {[%clk 0:01:16.5]} 19. Bd1 {[%clk 0:00:55.7]}
19... d4 {[%clk 0:01:16.4]} 20. Bb2 {[%clk 0:00:53.6]} 20... e5 {[%clk
0:01:13.3]} 21. h3 {[%clk 0:00:53.2]} 21... Be6 {[%clk 0:01:10]} 22. Kd2 {[%clk
0:00:51.8]} 22... Rac8 {[%clk 0:01:03.1]} 23. Re1 {[%clk 0:00:51.6]} 23... Bd5
{[%clk 0:01:02]} 24. Rc1 {[%clk 0:00:49.5]} 24... b6 {[%clk 0:01:00.1]} 25. Ba4
{[%clk 0:00:47.1]} 25... Rfe8 {[%clk 0:00:30.8]} 26. Bxc6 {[%clk 0:00:17.3]}
26... Rxc6 {[%clk 0:00:29.1]} 27. Rxc6 {[%clk 0:00:09.4]} 27... Bxc6 {[%clk
0:00:30]} 28. Rc1 {[%clk 0:00:10.1]} 28... Re6 {[%clk 0:00:27.6]} 29. Kc2 {[%clk
0:00:08.1]} 29... Kf7 {[%clk 0:00:24.8]} 30. Kb3 {[%clk 0:00:08.4]} 30... Ke7
{[%clk 0:00:25.2]} 31. Kb4 {[%clk 0:00:08]} 31... Kd7 {[%clk 0:00:25.1]} 32. Re1
{[%clk 0:00:07.5]} 32... Kd6 {[%clk 0:00:24.3]} 33. Kc4 {[%clk 0:00:06.1]} 33...
a6 {[%clk 0:00:18.7]} 34. Kb4 {[%clk 0:00:06]} 34... Bb5 {[%clk 0:00:15.5]} 35.
Rd1 {[%clk 0:00:05.2]} 35... Kd5 {[%clk 0:00:14.2]} 36. a4 {[%clk 0:00:05.7]}
36... Bd7 {[%clk 0:00:14.5]} 37. Rc1 {[%clk 0:00:03.4]} 37... a5+ {[%clk
0:00:13]} 38. Kb3 {[%clk 0:00:03.3]} 38... Rc6 {[%clk 0:00:13.4]} 39. Rxc6
{[%clk 0:00:03.7]} 39... Bxc6 {[%clk 0:00:14.3]} 40. Bc1 {[%clk 0:00:04.6]}
40... e4 {[%clk 0:00:14]} 41. dxe4+ {[%clk 0:00:03.2]} 41... Kxe4 {[%clk
0:00:14.9]} 42. Bg5 {[%clk 0:00:03.9]} 42... d3 {[%clk 0:00:13.5]} 43. Bd8
{[%clk 0:00:04]} 43... Bxa4+ {[%clk 0:00:12.2]} 44. Kc3 {[%clk 0:00:04.2]} 44...
b5 {[%clk 0:00:10.9]} 45. Bxa5 {[%clk 0:00:04.3]} 45... Bd1 {[%clk 0:00:11.1]}
46. Bb4 {[%clk 0:00:02.1]} 46... g6 {[%clk 0:00:11]} 47. Kd2 {[%clk 0:00:03]}
47... Be2 {[%clk 0:00:10.6]} 48. Bc3 {[%clk 0:00:03.4]} 48... g5 {[%clk
0:00:09.5]} 49. Bf6 {[%clk 0:00:03.4]} 49... Kf4 {[%clk 0:00:09.9]} 50. Be7
{[%clk 0:00:02.5]} 50... Bf1 {[%clk 0:00:09.9]} 51. Bd6+ {[%clk 0:00:02.9]}
51... Ke4 {[%clk 0:00:10.2]} 52. Be7 {[%clk 0:00:01.7]} 52... Bxh3 {[%clk
0:00:10.5]} 53. Bxg5 {[%clk 0:00:02.3]} 53... Bxg4 {[%clk 0:00:11.1]} 54. Bh6
{[%clk 0:00:02.6]} 54... Be6 {[%clk 0:00:11.5]} 55. Kc3 {[%clk 0:00:02.6]} 55...
Bc4 {[%clk 0:00:10.2]} 56. Bg5 {[%clk 0:00:02.2]} 56... Kf5 {[%clk 0:00:10.1]}
57. Bh6 {[%clk 0:00:02.7]} 57... Kg4 {[%clk 0:00:09.7]} 58. Kd2 {[%clk
0:00:01.9]} 58... Kh5 {[%clk 0:00:10.2]} 59. Bf8 {[%clk 0:00:02.4]} 59... Kg6
{[%clk 0:00:10.5]} 60. Be7 {[%clk 0:00:02.7]} 60... h5 {[%clk 0:00:10.4]} 61.
Bh4 {[%clk 0:00:03.4]} 61... Kf5 {[%clk 0:00:10.8]} 62. Ke3 {[%clk 0:00:03.9]}
62... Kg4 {[%clk 0:00:11.7]} 63. Bg3 {[%clk 0:00:03.9]} 63... h4 {[%clk
0:00:12.6]} 64. Bh2 {[%clk 0:00:02.6]} 64... Kh3 {[%clk 0:00:11.8]} 65. Bd6
{[%clk 0:00:03.1]} 65... Kg2 {[%clk 0:00:12.7]} 66. Bc5 {[%clk 0:00:02.7]} 66...
h3 {[%clk 0:00:13.2]} 67. Bd6 {[%clk 0:00:03.6]} 67... h2 {[%clk 0:00:13.7]} 68.
Bxh2 {[%clk 0:00:04.2]} 68... Kxh2 {[%clk 0:00:14.6]} 69. Kf4 {[%clk 0:00:05.1]}
69... d2 {[%clk 0:00:14.7]} 70. Kg4 {[%clk 0:00:06]} 70... d1=Q {[%clk
0:00:15.6]} 71. Kh4 {[%clk 0:00:06.9]} 71... Qe2 {[%clk 0:00:16]} 72. Kh5 {[%clk
0:00:07.4]} 72... b4 {[%clk 0:00:16.9]} 73. Kh6 {[%clk 0:00:08.1]} 73... b3
{[%clk 0:00:17.8]} 74. Kh7 {[%clk 0:00:08.9]} 74... b2 {[%clk 0:00:18.7]} 0-1

[Event "Early-Titled-Tuesday-Blitz-April-02-2024"]
[Site "Chess.com"]
[Date "2024.04.02"]
[Round "6"]
[White "Massakru"]
[Black "SlavenPastar"]
[Result "1/2-1/2"]
[WhiteElo "2389"]
[BlackElo "2546"]
[TimeControl "180+1"]
[EndTime "9:08:20 PDT"]
[Termination "Game drawn by stalemate"]

1. e4 {[%clk 0:03:00.9]} 1... b6 {[%clk 0:02:58.2]} 2. d4 {[%clk 0:03:00.2]}
2... Bb7 {[%clk 0:02:58.6]} 3. Bd3 {[%clk 0:03:00]} 3... Nf6 {[%clk 0:02:58.3]}
4. Qe2 {[%clk 0:02:58.7]} 4... e6 {[%clk 0:02:58.7]} 5. Nf3 {[%clk 0:02:57.4]}
5... d5 {[%clk 0:02:58.9]} 6. Nbd2 {[%clk 0:02:56]} 6... dxe4 {[%clk 0:02:52.6]}
7. Nxe4 {[%clk 0:02:55.6]} 7... Nbd7 {[%clk 0:02:51.9]} 8. Bg5 {[%clk
0:02:54.1]} 8... Be7 {[%clk 0:02:51.5]} 9. Nxf6+ {[%clk 0:02:52.2]} 9... Nxf6
{[%clk 0:02:52.4]} 10. O-O-O {[%clk 0:02:49]} 10... h6 {[%clk 0:02:48.3]} 11.
Bh4 {[%clk 0:02:47.1]} 11... Bxf3 {[%clk 0:02:38.7]} 12. Qxf3 {[%clk 0:02:45.1]}
12... Qd5 {[%clk 0:02:39.2]} 13. Bb5+ {[%clk 0:02:34.3]} 13... Kf8 {[%clk
0:02:28.4]} 14. Bc6 {[%clk 0:02:15.4]} 14... Qxf3 {[%clk 0:02:20.2]} 15. Bxf3
{[%clk 0:02:15.3]} 15... Rd8 {[%clk 0:02:13.9]} 16. Bg3 {[%clk 0:02:10.7]} 16...
Bd6 {[%clk 0:02:13.9]} 17. Be5 {[%clk 0:02:04.5]} 17... Ke7 {[%clk 0:02:05.9]}
18. c4 {[%clk 0:01:57.6]} 18... Bxe5 {[%clk 0:01:43.1]} 19. dxe5 {[%clk
0:01:56.9]} 19... Nd7 {[%clk 0:01:43.2]} 20. Rhe1 {[%clk 0:01:55]} 20... Nc5
{[%clk 0:01:43.4]} 21. Kc2 {[%clk 0:01:46.5]} 21... a5 {[%clk 0:01:41.1]} 22. b3
{[%clk 0:01:44.4]} 22... g5 {[%clk 0:01:35.1]} 23. a3 {[%clk 0:01:42.1]} 23...
Rxd1 {[%clk 0:01:31]} 24. Rxd1 {[%clk 0:01:41.4]} 24... Rd8 {[%clk 0:01:31.4]}
25. Rxd8 {[%clk 0:01:34.1]} 25... Kxd8 {[%clk 0:01:32.3]} 26. Bc6 {[%clk
0:01:27.1]} 26... Na6 {[%clk 0:01:20.1]} 27. Kc3 {[%clk 0:01:23.6]} 27... Nb8
{[%clk 0:01:20]} 28. Bf3 {[%clk 0:01:22.4]} 28... c5 {[%clk 0:01:17.5]} 29. Kd3
{[%clk 0:01:18.5]} 29... Ke7 {[%clk 0:01:14.2]} 30. Bb7 {[%clk 0:01:15.8]} 30...
f5 {[%clk 0:01:09.4]} 31. exf6+ {[%clk 0:01:14.2]} 31... Kxf6 {[%clk 0:01:08.6]}
32. Kc3 {[%clk 0:01:10.3]} 32... Nd7 {[%clk 0:01:04.5]} 33. b4 {[%clk
0:01:09.9]} 33... axb4+ {[%clk 0:01:05.1]} 34. axb4 {[%clk 0:01:10.3]} 34... Ne5
{[%clk 0:01:03.5]} 35. f3 {[%clk 0:01:02.4]} 35... Ng6 {[%clk 0:01:02.4]} 36. g3
{[%clk 0:01:01.2]} 36... Ke5 {[%clk 0:01:01.5]} 37. Bc8 {[%clk 0:00:55.6]} 37...
Ne7 {[%clk 0:01:01.1]} 38. Bb7 {[%clk 0:00:53.7]} 38... Nf5 {[%clk 0:00:58.5]}
39. bxc5 {[%clk 0:00:51.8]} 39... bxc5 {[%clk 0:00:58.2]} 40. Kd3 {[%clk
0:00:50.6]} 40... h5 {[%clk 0:00:56.8]} 41. Bc6 {[%clk 0:00:47.4]} 41... h4
{[%clk 0:00:56.7]} 42. g4 {[%clk 0:00:39.2]} 42... Ne7 {[%clk 0:00:51.8]} 43.
Bb7 {[%clk 0:00:37.5]} 43... Ng6 {[%clk 0:00:51.5]} 44. Ke3 {[%clk 0:00:36.3]}
44... Nf4 {[%clk 0:00:51.6]} 45. Bc8 {[%clk 0:00:34.1]} 45... Ng2+ {[%clk
0:00:49.4]} 46. Kf2 {[%clk 0:00:33.9]} 46... Nf4 {[%clk 0:00:48.5]} 47. Ke3
{[%clk 0:00:34.5]} 47... Ng6 {[%clk 0:00:44.9]} 48. Bd7 {[%clk 0:00:33.5]} 48...
Ne7 {[%clk 0:00:42.2]} 49. Be8 {[%clk 0:00:30.2]} 49... Nc8 {[%clk 0:00:42.1]}
50. Bd7 {[%clk 0:00:29.1]} 50... Nd6 {[%clk 0:00:42.4]} 51. Bb5 {[%clk
0:00:28.1]} 51... Nb7 {[%clk 0:00:33.2]} 52. Ba6 {[%clk 0:00:18.9]} 52... Na5
{[%clk 0:00:31.9]} 53. Bb5 {[%clk 0:00:18.6]} 53... Nb3 {[%clk 0:00:31.9]} 54.
Ba6 {[%clk 0:00:18]} 54... Nd4 {[%clk 0:00:29.3]} 55. Bb7 {[%clk 0:00:17.4]}
55... Nc2+ {[%clk 0:00:23]} 56. Kd3 {[%clk 0:00:16.4]} 56... Nb4+ {[%clk
0:00:14]} 57. Ke3 {[%clk 0:00:16.4]} 57... Nc2+ {[%clk 0:00:10.7]} 58. Kd3
{[%clk 0:00:16.1]} 58... Nd4 {[%clk 0:00:11.6]} 59. Ke3 {[%clk 0:00:15.7]} 59...
Kf6 {[%clk 0:00:08.8]} 60. Ke4 {[%clk 0:00:15.5]} 60... Nc2 {[%clk 0:00:07.9]}
61. f4 {[%clk 0:00:13.7]} 61... Nd4 {[%clk 0:00:07.1]} 62. fxg5+ {[%clk
0:00:11.8]} 62... Kxg5 {[%clk 0:00:08]} 63. h3 {[%clk 0:00:11.6]} 63... Kf6
{[%clk 0:00:07.4]} 64. Bc8 {[%clk 0:00:11.2]} 64... Ne2 {[%clk 0:00:06.1]} 65.
g5+ {[%clk 0:00:10.3]} 65... Kxg5 {[%clk 0:00:05.7]} 66. Bxe6 {[%clk 0:00:10.2]}
66... Nf4 {[%clk 0:00:05.2]} 67. Bg4 {[%clk 0:00:09.3]} 67... Ng6 {[%clk
0:00:05.1]} 68. Kd5 {[%clk 0:00:09]} 68... Kf4 {[%clk 0:00:05]} 69. Kxc5 {[%clk
0:00:08.4]} 69... Ne5 {[%clk 0:00:05.6]} 70. Be6 {[%clk 0:00:07.5]} 70... Nxc4
{[%clk 0:00:03.6]} 71. Kxc4 {[%clk 0:00:07.4]} 71... Kg5 {[%clk 0:00:04.5]} 72.
Bg4 {[%clk 0:00:07.1]} 72... Kh6 {[%clk 0:00:05.4]} 73. Kd5 {[%clk 0:00:07.5]}
73... Kg7 {[%clk 0:00:06.3]} 74. Ke5 {[%clk 0:00:08.4]} 74... Kh8 {[%clk
0:00:07.2]} 75. Kf5 {[%clk 0:00:09.1]} 75... Kg8 {[%clk 0:00:07.7]} 76. Kg5
{[%clk 0:00:10]} 76... Kh8 {[%clk 0:00:08.6]} 77. Kxh4 {[%clk 0:00:10.9]} 77...
Kg8 {[%clk 0:00:09.3]} 78. Kg5 {[%clk 0:00:11.8]} 78... Kh8 {[%clk 0:00:10.2]}
79. Kh6 {[%clk 0:00:12.6]} 79... Kg8 {[%clk 0:00:11.1]} 80. h4 {[%clk
0:00:13.3]} 80... Kh8 {[%clk 0:00:12]} 81. h5 {[%clk 0:00:14.2]} 81... Kg8
{[%clk 0:00:12.9]} 82. Be6+ {[%clk 0:00:14.5]} 82... Kh8 {[%clk 0:00:13.8]} 83.
Kg6 {[%clk 0:00:14.9]} 1/2-1/2

[Event "Early-Titled-Tuesday-Blitz-April-02-2024"]
[Site "Chess.com"]
[Date "2024.04.02"]
[Round "6"]
[White "kachsona"]
[Black "LeoWin2012"]
[Result "1-0"]
[WhiteElo "2609"]
[BlackElo "2330"]
[TimeControl "180+1"]
[EndTime "9:08:23 PDT"]
[Termination "kachsona won by checkmate"]

1. e4 {[%clk 0:03:00.9]} 1... c5 {[%clk 0:02:57.2]} 2. Nf3 {[%clk 0:03:00.4]}
2... d6 {[%clk 0:02:57.3]} 3. d4 {[%clk 0:03:00]} 3... cxd4 {[%clk 0:02:57.6]}
4. Qxd4 {[%clk 0:03:00.7]} 4... Nc6 {[%clk 0:02:55.2]} 5. Qe3 {[%clk 0:02:58.2]}
5... g6 {[%clk 0:02:52.3]} 6. c4 {[%clk 0:02:57.8]} 6... a5 {[%clk 0:02:47.9]}
7. h3 {[%clk 0:02:53.9]} 7... Bd7 {[%clk 0:02:45.6]} 8. Be2 {[%clk 0:02:53.8]}
8... a4 {[%clk 0:02:45.6]} 9. O-O {[%clk 0:02:48.9]} 9... Bg7 {[%clk 0:02:42.6]}
10. Nc3 {[%clk 0:02:44.4]} 10... Nf6 {[%clk 0:02:39.1]} 11. Rb1 {[%clk
0:02:40.2]} 11... O-O {[%clk 0:02:38]} 12. Rd1 {[%clk 0:02:38.8]} 12... Ne8
{[%clk 0:02:24.9]} 13. Nd5 {[%clk 0:02:36.1]} 13... Be6 {[%clk 0:02:22.3]} 14.
Ng5 {[%clk 0:02:30.3]} 14... Bxd5 {[%clk 0:02:19.4]} 15. exd5 {[%clk 0:02:29.5]}
15... Nb4 {[%clk 0:02:19.6]} 16. a3 {[%clk 0:02:22.7]} 16... Na6 {[%clk
0:02:19.6]} 17. Bg4 {[%clk 0:02:10.2]} 17... Nc5 {[%clk 0:02:18.6]} 18. h4
{[%clk 0:02:06.5]} 18... Nf6 {[%clk 0:02:18.5]} 19. Bh3 {[%clk 0:02:02.3]} 19...
Nfd7 {[%clk 0:02:18.6]} 20. Bd2 {[%clk 0:01:58.9]} 20... Ne5 {[%clk 0:02:16.5]}
21. Qe2 {[%clk 0:01:56.8]} 21... h6 {[%clk 0:02:11]} 22. Ne4 {[%clk 0:01:47.3]}
22... Nxe4 {[%clk 0:02:10.8]} 23. Qxe4 {[%clk 0:01:47.9]} 23... h5 {[%clk
0:02:11.3]} 24. Bc3 {[%clk 0:01:39.2]} 24... Qc7 {[%clk 0:02:10.1]} 25. Rbc1
{[%clk 0:01:32.7]} 25... Nd7 {[%clk 0:02:00.2]} 26. Bxg7 {[%clk 0:01:31.7]}
26... Kxg7 {[%clk 0:02:00.3]} 27. Qxe7 {[%clk 0:01:29.7]} 27... Rad8 {[%clk
0:01:59.8]} 28. Be6 {[%clk 0:01:13.1]} 28... Kg8 {[%clk 0:01:50.3]} 29. c5
{[%clk 0:01:00.3]} 29... dxc5 {[%clk 0:01:38.5]} 30. Bxd7 {[%clk 0:00:40.8]}
30... Rxd7 {[%clk 0:01:35.4]} 31. Qxc5 {[%clk 0:00:41]} 31... Qe5 {[%clk
0:01:25]} 32. Qd4 {[%clk 0:00:40.5]} 32... Qf5 {[%clk 0:01:21.6]} 33. Qxa4
{[%clk 0:00:38.1]} 33... Rxd5 {[%clk 0:01:20.1]} 34. Rxd5 {[%clk 0:00:37.1]}
34... Qxd5 {[%clk 0:01:20.7]} 35. Qc4 {[%clk 0:00:31.4]} 35... Qe5 {[%clk
0:01:20]} 36. Qc3 {[%clk 0:00:27.3]} 36... Qf4 {[%clk 0:01:20.1]} 37. g3 {[%clk
0:00:26.9]} 37... Qf5 {[%clk 0:01:19.4]} 38. Qd4 {[%clk 0:00:23.2]} 38... Re8
{[%clk 0:01:15.2]} 39. Kg2 {[%clk 0:00:17]} 39... Kh7 {[%clk 0:01:00.1]} 40. Rc7
{[%clk 0:00:16.5]} 40... Re2 {[%clk 0:00:51.6]} 41. Rxb7 {[%clk 0:00:12.3]}
41... Re4 {[%clk 0:00:46.8]} 42. Qd7 {[%clk 0:00:10.7]} 42... Qxd7 {[%clk
0:00:30]} 43. Rxd7 {[%clk 0:00:11.6]} 43... Kg7 {[%clk 0:00:30.7]} 44. b4 {[%clk
0:00:11.9]} 44... Re2 {[%clk 0:00:29.7]} 45. Rd3 {[%clk 0:00:10.6]} 45... Kf6
{[%clk 0:00:29.5]} 46. Rb3 {[%clk 0:00:10.3]} 46... Ke6 {[%clk 0:00:29.6]} 47.
b5 {[%clk 0:00:10.6]} 47... Kd7 {[%clk 0:00:29.4]} 48. b6 {[%clk 0:00:10.5]}
48... Kc8 {[%clk 0:00:29.9]} 49. b7+ {[%clk 0:00:10.9]} 49... Kb8 {[%clk
0:00:30]} 50. Kf3 {[%clk 0:00:10.3]} 50... Re5 {[%clk 0:00:30.1]} 51. Kf4 {[%clk
0:00:08.2]} 51... Rf5+ {[%clk 0:00:30.5]} 52. Ke3 {[%clk 0:00:08.6]} 52... Re5+
{[%clk 0:00:30.7]} 53. Kd4 {[%clk 0:00:09.2]} 53... Rf5 {[%clk 0:00:31]} 54. f4
{[%clk 0:00:09.4]} 54... f6 {[%clk 0:00:27.7]} 55. Rb6 {[%clk 0:00:07.3]} 55...
Ra5 {[%clk 0:00:25.1]} 56. Rxf6 {[%clk 0:00:07.1]} 56... Kxb7 {[%clk 0:00:22.8]}
57. Rxg6 {[%clk 0:00:07.1]} 57... Rxa3 {[%clk 0:00:21.9]} 58. Ke5 {[%clk
0:00:07]} 58... Kc7 {[%clk 0:00:21.3]} 59. f5 {[%clk 0:00:06.5]} 59... Kd7
{[%clk 0:00:21.6]} 60. Kf6 {[%clk 0:00:06.3]} 60... Rf3 {[%clk 0:00:19]} 61.
Rg7+ {[%clk 0:00:06.1]} 61... Ke8 {[%clk 0:00:18.5]} 62. Rg8+ {[%clk 0:00:06.8]}
62... Kd7 {[%clk 0:00:19.1]} 63. Rg5 {[%clk 0:00:07.6]} 63... Ke8 {[%clk
0:00:18.7]} 64. Kg7 {[%clk 0:00:07.9]} 64... Ke7 {[%clk 0:00:18.1]} 65. f6+
{[%clk 0:00:08.3]} 65... Ke6 {[%clk 0:00:13.6]} 66. Rg6 {[%clk 0:00:08.5]} 66...
Rf2 {[%clk 0:00:06.9]} 67. f7+ {[%clk 0:00:08]} 67... Ke7 {[%clk 0:00:07.5]} 68.
f8=Q+ {[%clk 0:00:08.1]} 68... Rxf8 {[%clk 0:00:07]} 69. Re6+ {[%clk 0:00:08.4]}
69... Kxe6 {[%clk 0:00:07.5]} 70. Kxf8 {[%clk 0:00:08.8]} 70... Kf5 {[%clk
0:00:08.2]} 71. Kg7 {[%clk 0:00:08.5]} 71... Kg4 {[%clk 0:00:08.3]} 72. Kg6
{[%clk 0:00:08.9]} 72... Kxg3 {[%clk 0:00:08.7]} 73. Kxh5 {[%clk 0:00:09.6]}
73... Kf4 {[%clk 0:00:09.2]} 74. Kg6 {[%clk 0:00:10.2]} 74... Ke5 {[%clk
0:00:09.9]} 75. h5 {[%clk 0:00:10.6]} 75... Ke6 {[%clk 0:00:10.7]} 76. h6 {[%clk
0:00:10.6]} 76... Ke7 {[%clk 0:00:11.4]} 77. h7 {[%clk 0:00:11.3]} 77... Kf8
{[%clk 0:00:12]} 78. h8=Q+ {[%clk 0:00:11.7]} 78... Ke7 {[%clk 0:00:06.7]} 79.
Qe5+ {[%clk 0:00:11.8]} 79... Kd7 {[%clk 0:00:07.6]} 80. Qf6 {[%clk 0:00:11.8]}
80... Kc8 {[%clk 0:00:08.4]} 81. Qe7 {[%clk 0:00:11.7]} 81... Kb8 {[%clk
0:00:08.5]} 82. Qd7 {[%clk 0:00:12.4]} 82... Ka8 {[%clk 0:00:09.4]} 83. Kf5
{[%clk 0:00:12.9]} 83... Kb8 {[%clk 0:00:10.3]} 84. Ke5 {[%clk 0:00:13.6]} 84...
Ka8 {[%clk 0:00:11.2]} 85. Kd5 {[%clk 0:00:14.3]} 85... Kb8 {[%clk 0:00:12.1]}
86. Kc5 {[%clk 0:00:15]} 86... Ka8 {[%clk 0:00:13]} 87. Kb6 {[%clk 0:00:15.6]}
87... Kb8 {[%clk 0:00:13.9]} 88. Qd8# {[%clk 0:00:16]} 1-0

[Event "Early-Titled-Tuesday-Blitz-April-02-2024"]
[Site "Chess.com"]
[Date "2024.04.02"]
[Round "6"]
[White "kingandqueen2017"]
[Black "kritipatel"]
[Result "1-0"]
[WhiteElo "2488"]
[BlackElo "2248"]
[TimeControl "180+1"]
[EndTime "9:08:25 PDT"]
[Termination "kingandqueen2017 won by checkmate"]

1. d4 {[%clk 0:02:37.2]} 1... d5 {[%clk 0:02:59.3]} 2. c4 {[%clk 0:02:36.6]}
2... e6 {[%clk 0:02:59.4]} 3. Nf3 {[%clk 0:02:33.2]} 3... Nf6 {[%clk 0:02:59.7]}
4. Nc3 {[%clk 0:02:11.2]} 4... Be7 {[%clk 0:02:58.6]} 5. g3 {[%clk 0:01:21.9]}
5... O-O {[%clk 0:02:58.2]} 6. Bg2 {[%clk 0:01:18.7]} 6... b6 {[%clk 0:02:55.1]}
7. cxd5 {[%clk 0:01:17.8]} 7... exd5 {[%clk 0:02:54.8]} 8. O-O {[%clk
0:01:16.6]} 8... Bb7 {[%clk 0:02:55.2]} 9. Bf4 {[%clk 0:01:13.3]} 9... c5 {[%clk
0:02:53]} 10. Rc1 {[%clk 0:01:12]} 10... Nc6 {[%clk 0:02:50.5]} 11. dxc5 {[%clk
0:01:10.8]} 11... bxc5 {[%clk 0:02:47.8]} 12. Na4 {[%clk 0:00:14.3]} 12... Qa5
{[%clk 0:02:25.8]} 13. b3 {[%clk 0:00:12]} 13... Rac8 {[%clk 0:02:16.1]} 14. Bh3
{[%clk 0:00:11.6]} 14... Rcd8 {[%clk 0:02:12.7]} 15. Bd2 {[%clk 0:00:10]} 15...
Qb5 {[%clk 0:02:10.4]} 16. Re1 {[%clk 0:00:10.2]} 16... d4 {[%clk 0:02:07.1]}
17. Bg2 {[%clk 0:00:09.8]} 17... Ne4 {[%clk 0:01:49.1]} 18. Qc2 {[%clk 0:00:10]}
18... f5 {[%clk 0:01:47.1]} 19. Bf1 {[%clk 0:00:08.9]} 19... Qb6 {[%clk
0:01:43.2]} 20. Bf4 {[%clk 0:00:09]} 20... Ba6 {[%clk 0:01:41.6]} 21. Nd2 {[%clk
0:00:09.1]} 21... Nxd2 {[%clk 0:01:39.1]} 22. Bxd2 {[%clk 0:00:10]} 22... Rc8
{[%clk 0:01:38.4]} 23. Nxc5 {[%clk 0:00:09.2]} 23... Nb4 {[%clk 0:01:32.5]} 24.
Bxb4 {[%clk 0:00:09.1]} 24... Qxb4 {[%clk 0:01:33.1]} 25. Nxa6 {[%clk
0:00:09.3]} 25... Rxc2 {[%clk 0:01:31.2]} 26. Nxb4 {[%clk 0:00:09]} 26... Rxc1
{[%clk 0:01:29.3]} 27. Rxc1 {[%clk 0:00:09.9]} 27... Bxb4 {[%clk 0:01:29.7]} 28.
Rc7 {[%clk 0:00:10.5]} 28... a5 {[%clk 0:01:28]} 29. Bg2 {[%clk 0:00:10.7]}
29... Bc3 {[%clk 0:01:26.7]} 30. Bd5+ {[%clk 0:00:10.9]} 30... Kh8 {[%clk
0:01:27]} 31. Bc4 {[%clk 0:00:11.7]} 31... Re8 {[%clk 0:01:26.8]} 32. Kg2 {[%clk
0:00:11.4]} 32... h6 {[%clk 0:01:27.3]} 33. h4 {[%clk 0:00:11.7]} 33... Kh7
{[%clk 0:01:26.5]} 34. h5 {[%clk 0:00:12]} 34... Re5 {[%clk 0:01:26.2]} 35. Bf7
{[%clk 0:00:10.9]} 35... g5 {[%clk 0:01:02.8]} 36. hxg6+ {[%clk 0:00:08.6]}
36... Kg7 {[%clk 0:01:01.1]} 37. Kf3 {[%clk 0:00:09.1]} 37... Kf6 {[%clk
0:00:49.5]} 38. Rc6+ {[%clk 0:00:06.6]} 38... Kg7 {[%clk 0:00:48.2]} 39. Rc8
{[%clk 0:00:07]} 39... Kf6 {[%clk 0:00:46.4]} 40. Rg8 {[%clk 0:00:06.3]} 40...
Re7 {[%clk 0:00:42.6]} 41. Rh8 {[%clk 0:00:03.2]} 41... Bd2 {[%clk 0:00:41.5]}
42. Rc8 {[%clk 0:00:02.3]} 42... Bc3 {[%clk 0:00:39.7]} 43. Rc6+ {[%clk
0:00:02.5]} 43... Kg7 {[%clk 0:00:40.1]} 44. Rc5 {[%clk 0:00:01.6]} 44... Kf6
{[%clk 0:00:39.5]} 45. Rd5 {[%clk 0:00:02.1]} 45... Rc7 {[%clk 0:00:37]} 46. e3
{[%clk 0:00:02.1]} 46... dxe3 {[%clk 0:00:36.6]} 47. fxe3 {[%clk 0:00:03]} 47...
Re7 {[%clk 0:00:36.9]} 48. Rd6+ {[%clk 0:00:02.5]} 48... Kg7 {[%clk 0:00:36.7]}
49. Rd5 {[%clk 0:00:03.1]} 49... Bd2 {[%clk 0:00:37.1]} 50. Rxf5 {[%clk
0:00:03]} 50... Rxe3+ {[%clk 0:00:36.4]} 51. Kg4 {[%clk 0:00:03.6]} 51... Re4+
{[%clk 0:00:36.4]} 52. Kh3 {[%clk 0:00:03.7]} 52... Re7 {[%clk 0:00:36.7]} 53.
Rd5 {[%clk 0:00:02.9]} 53... Bb4 {[%clk 0:00:37.2]} 54. Rd8 {[%clk 0:00:03.1]}
54... Kf6 {[%clk 0:00:37]} 55. Rh8 {[%clk 0:00:03.2]} 55... Bd2 {[%clk
0:00:36.1]} 56. Rh7 {[%clk 0:00:03.6]} 56... Rc7 {[%clk 0:00:34.7]} 57. Bc4
{[%clk 0:00:02.5]} 57... Rxh7 {[%clk 0:00:33]} 58. gxh7 {[%clk 0:00:03.4]} 58...
Kg7 {[%clk 0:00:33.7]} 59. Bd3 {[%clk 0:00:03.8]} 59... Bc3 {[%clk 0:00:34]} 60.
Kg4 {[%clk 0:00:04.1]} 60... Bb4 {[%clk 0:00:34.7]} 61. Kf5 {[%clk 0:00:04.3]}
61... Be7 {[%clk 0:00:35]} 62. Ke6 {[%clk 0:00:04.6]} 62... Bb4 {[%clk
0:00:35.3]} 63. g4 {[%clk 0:00:05.2]} 63... Bd2 {[%clk 0:00:35.7]} 64. Bf5
{[%clk 0:00:05.7]} 64... Bc3 {[%clk 0:00:35.6]} 65. Kd5 {[%clk 0:00:06.2]} 65...
Bb4 {[%clk 0:00:36.3]} 66. Kc4 {[%clk 0:00:06.5]} 66... Bd6 {[%clk 0:00:36.5]}
67. Kb5 {[%clk 0:00:06.8]} 67... Bb4 {[%clk 0:00:37.1]} 68. a3 {[%clk
0:00:06.7]} 68... Bxa3 {[%clk 0:00:37.1]} 69. Kxa5 {[%clk 0:00:07.4]} 69... Bb2
{[%clk 0:00:37.7]} 70. b4 {[%clk 0:00:07.8]} 70... Be5 {[%clk 0:00:38.3]} 71. b5
{[%clk 0:00:08.4]} 71... Bb8 {[%clk 0:00:38.9]} 72. b6 {[%clk 0:00:09]} 72... h5
{[%clk 0:00:36.5]} 73. g5 {[%clk 0:00:09]} 73... h4 {[%clk 0:00:36.5]} 74. b7
{[%clk 0:00:08.6]} 74... h3 {[%clk 0:00:35.8]} 75. g6 {[%clk 0:00:08.1]} 75...
h2 {[%clk 0:00:35.7]} 76. Be4 {[%clk 0:00:08.7]} 76... Be5 {[%clk 0:00:34]} 77.
Ka6 {[%clk 0:00:08.2]} 77... Bb8 {[%clk 0:00:34.6]} 78. Kb6 {[%clk 0:00:08.2]}
78... Kh8 {[%clk 0:00:33.7]} 79. Kc6 {[%clk 0:00:08.7]} 79... Kg7 {[%clk
0:00:30.2]} 80. Kd7 {[%clk 0:00:09.1]} 80... Be5 {[%clk 0:00:30.4]} 81. Kc8
{[%clk 0:00:09.2]} 81... h1=Q {[%clk 0:00:30.8]} 82. Bxh1 {[%clk 0:00:08.4]}
82... Kxg6 {[%clk 0:00:31.3]} 83. h8=Q {[%clk 0:00:08.7]} 83... Bxh8 {[%clk
0:00:31.1]} 84. b8=Q {[%clk 0:00:09.3]} 84... Bf6 {[%clk 0:00:32]} 85. Kd7
{[%clk 0:00:09.3]} 85... Kg5 {[%clk 0:00:32.9]} 86. Qb7 {[%clk 0:00:09.3]} 86...
Kg4 {[%clk 0:00:33.6]} 87. Ke6 {[%clk 0:00:10.2]} 87... Bg5 {[%clk 0:00:34.2]}
88. Qe4+ {[%clk 0:00:11.1]} 88... Bf4 {[%clk 0:00:35]} 89. Bf3+ {[%clk
0:00:11.3]} 89... Kg3 {[%clk 0:00:35.3]} 90. Kf5 {[%clk 0:00:11.9]} 90... Bd6
{[%clk 0:00:33.2]} 91. Qg4+ {[%clk 0:00:12.8]} 91... Kf2 {[%clk 0:00:33.8]} 92.
Ke4 {[%clk 0:00:13.7]} 92... Ke1 {[%clk 0:00:34.1]} 93. Qg2 {[%clk 0:00:14.6]}
93... Bb4 {[%clk 0:00:34.5]} 94. Qe2# {[%clk 0:00:15.2]} 1-0